fUSD/lending_fUSD_20240815
["ID","MTS","AMOUNT","RATE_DAILY","PERIOD"]
[334965436,1723683034874,-386.8522943,0.00023783,2]
[334965437,1723683034884,-165.83,0.00023892,2]
[334965438,1723683034894,-1000.0,0.000239,7]
[334965439,1723683034903,-1006.5,0.00024,7]
[334965440,1723683034914,-2688.88027,0.00024088,2]
[334965441,1723683034924,-226.0,0.000241,2]
[334965442,1723683034934,-358.0,0.000241,2]
[334965443,1723683034944,-1932.60611324,0.00024131,2]
[334965444,1723683034955,-2329.8302,0.00024156,2]
[334965445,1723683034964,-1031.7107,0.0002418,2]
[334965446,1723683034974,-2635.2288,0.000242,2]
[334965447,1723683034982,-349.38708896,0.000242,2]
[334965448,1723683034992,-2025.37714953,0.00024201,2]
[334965449,1723683035001,-368.0,0.00024208,2]
[334965450,1723683035011,-150.0,0.00024225,2]
[334965451,1723683035021,-150.20882,0.00024242,2]
[334965452,1723683035031,-835.5,0.00024256,2]
[334965453,1723683035040,-421.09,0.00024256,2]
[334965454,1723683035050,-835.5,0.00024256,2]
[334965455,1723683035059,-421.09,0.00024256,2]
[334965456,1723683035068,-835.5,0.00024256,2]
[334965457,1723683035077,-421.09,0.00024256,2]
[334965458,1723683035086,-835.5,0.00024256,2]
[334965459,1723683035096,-835.5,0.00024256,2]
[334965460,1723683035105,-841.78,0.00024256,2]
[334965461,1723683035115,-328.98,0.00024256,2]
[334965462,1723683035124,-421.09,0.00024256,2]
[334965463,1723683035134,-421.09,0.00024256,2]
[334965464,1723683035143,-421.09,0.00024256,2]
[334965465,1723683035153,-421.09,0.00024256,2]
[334965466,1723683035162,-501.01774962,0.00024278,2]
[334965467,1723683035172,-262.5936,0.00024283,2]
[334965468,1723683035182,-152.14,0.0002429,2]
[334965469,1723683035192,-56749.61750586,0.000243,5]
[334965470,1723683035208,-465.65120639,0.000243,5]
[334965471,1723683035224,-10371.38293521,0.000243,5]
[334965472,1723683035239,-1450.0,0.000243,5]
[334965473,1723683035251,-397.7418011,0.000243,5]
[334965474,1723683035263,-1029.07753147,0.000243,5]
[334965489,1723683038443,-485.18668102,0.00013052,2]
[334965490,1723683038456,-155.0,0.00013052,2]
[334965491,1723683038466,-17319.36728617,0.000243,5]
[334965492,1723683038501,-2939.34453431,0.000243,5]
[334965499,1723683040314,-534.96,0.000243,5]
[334965500,1723683040486,-17758.61033178,0.000243,5]
[334965501,1723683040545,-941.86337099,0.000243,5]
[334965502,1723683040557,-267.31,0.000243,5]
[334966062,1723683046677,-969.83288173,0.00019706,2]
[334966064,1723683046687,-150.08,0.0002429,2]
[334966066,1723683046697,-150.08,0.0002429,2]
[334966068,1723683046707,-150.08,0.0002429,2]
[334966069,1723683046717,-150.08,0.0002429,2]
[334966070,1723683046726,-150.08,0.0002429,2]
[334966071,1723683046735,-150.08,0.0002429,2]
[334966072,1723683046744,-150.08,0.0002429,2]
[334966073,1723683046754,-150.08,0.0002429,2]
[334966074,1723683046763,-150.08,0.0002429,2]
[334966075,1723683046772,-150.08,0.0002429,2]
[334966076,1723683046782,-150.08,0.0002429,2]
[334966077,1723683046791,-150.08,0.0002429,2]
[334966078,1723683046801,-150.08,0.0002429,2]
[334966079,1723683046810,-150.08,0.0002429,2]
[334966080,1723683046819,-150.08,0.0002429,2]
[334966081,1723683046828,-150.08,0.0002429,2]
[334966082,1723683046838,-150.08,0.0002429,2]
[334966083,1723683046848,-150.08,0.0002429,2]
[334966084,1723683046857,-13775.57888401,0.000243,5]
[334966089,1723683203278,656.82,0.00024657,120]
[334966090,1723683203534,656.82,0.00025342,120]
[334966091,1723683203785,656.82,0.00026027,120]
[334966092,1723683204059,656.82,0.00026712,120]
[334966094,1723683322968,770.58574545,0.00027,120]
[334966095,1723683536369,400.0,0.00026922,120]
[334966096,1723683779745,547.35,0.00024657,120]
[334966097,1723683780116,547.35,0.00025342,120]
[334966098,1723683780416,547.35,0.00026027,120]
[334966099,1723683780677,547.35,0.00026712,120]
[334966109,1723684231634,-550.0,0.0001,2]
[334966110,1723684231643,-3357.37387404,0.00010788,2]
[334966111,1723684231655,-1607.83586178,0.00010788,2]
[334966112,1723684231698,-1681.75562385,0.00010788,2]
[334966113,1723684231761,-648.12882621,0.00010788,2]
[334966114,1723684231773,-1283.39985363,0.00010788,2]
[334966115,1723684231824,-536.74014151,0.00010788,2]
[334966116,1723684231834,-8145.07564127,0.00010861,2]
[334966125,1723684237564,-3597.56620416,0.00010861,2]
[334966126,1723684237576,-709.08266212,0.00010861,2]
[334966127,1723684237626,-332.98204402,0.00010861,2]
[334966128,1723684237641,-2700.99260575,0.00010861,2]
[334966129,1723684237651,-300.0,0.00010887,2]
[334966130,1723684237661,-300.0,0.00010887,2]
[334966131,1723684237670,-250.0,0.00011,2]
[334966132,1723684237680,-150.0,0.00011,2]
[334966133,1723684237691,-2211.70870145,0.00011336,2]
[334966134,1723684237701,-85.49010767,0.00011965,2]
[334966135,1723684237712,-334.50989233,0.00011965,2]
[334966136,1723684237722,-420.0,0.00011975,2]
[334966137,1723684237731,-152.33055185,0.00011999,2]
[334966138,1723684237803,-3723.75922858,0.00011999,2]
[334966139,1723684237812,-5403.79429818,0.00011999,2]
[334966140,1723684237822,-2841.12816254,0.00012089,2]
[334966141,1723684237831,-2386.18469969,0.00012089,2]
[334966142,1723684237840,-1739.57017204,0.00012613,2]
[334966143,1723684237850,-2502.58566001,0.00012938,2]
[334966144,1723684237859,-150.0,0.00013,2]
[334966145,1723684237868,-150.99,0.00013001,2]
[334966146,1723684237877,-1074.67923523,0.00013001,2]
[334966147,1723684237887,-653.76941515,0.00013001,2]
[334966148,1723684237896,-270.62814649,0.00013001,2]
[334966149,1723684237905,-628.75889526,0.00013001,2]
[334966150,1723684237915,-493.59808335,0.00013042,2]
[334966151,1723684237925,-155.0,0.00013042,2]
[334966153,1723684237941,-197.1386879,0.00013042,2]
[334966155,1723684237952,-159.60847032,0.00013042,2]
[334966156,1723684237964,-155.08623708,0.00013052,2]
[334966157,1723684237974,-687.02501385,0.00013052,2]
[334966158,1723684237983,-5000.0,0.00013052,2]
[334966159,1723684237993,-155.0,0.00013052,2]
[334966160,1723684238003,-440.08291615,0.00013052,2]
[334966161,1723684238013,-380.32741541,0.00013052,2]
[334966162,1723684238022,-1500.0,0.00013052,2]
[334966163,1723684238031,-357.45302385,0.00013052,2]
[334966164,1723684238041,-255.19609183,0.00013052,2]
[334966165,1723684238050,-600.74422133,0.00013052,2]
[334966166,1723684238059,-432.55800069,0.00013052,2]
[334966167,1723684238068,-367.67076306,0.00013086,2]
[334966168,1723684238077,-155.21020262,0.00013086,2]
[334966169,1723684238087,-218.91005949,0.00013086,2]
[334966170,1723684238097,-155.0,0.00013086,2]
[334966172,1723684238106,-606.29385767,0.00013086,2]
[334966174,1723684238116,-236.34424982,0.00013086,2]
[334966175,1723684238125,-328.2488375,0.00013086,2]
[334966176,1723684238134,-164.40260801,0.00013086,2]
[334966177,1723684238144,-155.0,0.00013086,2]
[334966178,1723684238154,-587.0,0.00013149,2]
[334966179,1723684238165,-172.0,0.00013173,2]
[334966180,1723684238174,-228.35061966,0.00013292,2]
[334966181,1723684238185,-203.44814982,0.00013292,2]
[334966182,1723684238195,-155.0,0.00013292,2]
[334966183,1723684238205,-1298.23330788,0.00013292,2]
[334966184,1723684238214,-347.69615481,0.00013292,2]
[334966185,1723684238224,-155.0,0.00013292,2]
[334966186,1723684238233,-485.27698062,0.00013292,2]
[334966187,1723684238242,-155.0,0.00013292,2]
[334966188,1723684238252,-164.37927092,0.00013292,2]
[334966189,1723684238261,-155.0,0.00013292,2]
[334966190,1723684238270,-499.99,0.00013309,2]
[334966191,1723684238280,-297.48958849,0.00013391,2]
[334966192,1723684238289,-528.91996067,0.00013391,2]
[334966193,1723684238299,-155.0,0.00013672,2]
[334966194,1723684238308,-158.03,0.00013687,2]
[334966195,1723684238317,-155.0,0.00013688,2]
[334966196,1723684238326,-1646.84191634,0.00013688,2]
[334966197,1723684238335,-540.88,0.00013699,2]
[334966198,1723684238343,-206.57,0.00013699,2]
[334966199,1723684238352,-401.47517338,0.00013861,2]
[334966200,1723684238361,-419.39,0.00013973,2]
[334966201,1723684238370,-255.0,0.00014105,2]
[334966202,1723684238379,-155.0,0.00014245,2]
[334966203,1723684238388,-3937.46359227,0.00014398,2]
[334966204,1723684238397,-531.20685646,0.00014398,2]
[334966205,1723684238406,-155.0,0.00014398,2]
[334966206,1723684238415,-264.49036255,0.00014517,2]
[334966207,1723684238424,-211.0133722,0.00014681,2]
[334966208,1723684238436,-10534.15307555,0.00014753,2]
[334966209,1723684238445,-1873.52,0.00014782,2]
[334966210,1723684238454,-152.38,0.00017192,2]
[334966211,1723684238463,-2912.085,0.00017721,2]
[334966212,1723684238472,-926.4,0.00018123,2]
[334966213,1723684238481,-2751.0,0.00018516,2]
[334966214,1723684238490,-800.89,0.00018577,2]
[334966215,1723684238500,-200.0,0.00018657,2]
[334966216,1723684238509,-918.72,0.00018687,2]
[334966217,1723684238518,-585.29,0.00018967,2]
[334966218,1723684238527,-200.0,0.00019019,2]
[334966219,1723684238535,-500.0,0.0001916,2]
[334966220,1723684238545,-151.0,0.00019306,2]
[334966221,1723684238554,-184.0,0.00019356,2]
[334966222,1723684238563,-250.0,0.00019384,2]
[334966223,1723684238572,-400.0,0.0001958,2]
[334966224,1723684238581,-152.38,0.00019581,2]
[334966225,1723684238590,-1542.0,0.000197,2]
[334966226,1723684238599,-556.0,0.000197,2]
[334966227,1723684238608,-1000.0,0.00019809,2]
[334966228,1723684238617,-627.0,0.00019975,2]
[334966229,1723684238626,-926.4,0.00020388,2]
[334966230,1723684238635,-419.39,0.00020447,2]
[334966231,1723684238644,-627.4,0.00021918,2]
[334966232,1723684238653,-150.0,0.00021918,2]
[334966233,1723684238662,-152.38,0.00021971,2]
[334966234,1723684238671,-400.0,0.00022027,2]
[334966235,1723684238680,-3000.0,0.000222,2]
[334966236,1723684238690,-1000.0,0.00022466,2]
[334966237,1723684238860,-150.0,0.00022495,2]
[334966238,1723684238870,-926.4,0.00022653,2]
[334966239,1723684238880,-200.0,0.00023,2]
[334966240,1723684238889,-150.0,0.00023071,2]
[334966241,1723684238899,-180.0,0.00023205,2]
[334966242,1723684238908,-835.5,0.00023644,2]
[334966243,1723684238918,-835.5,0.00023644,2]
[334966244,1723684238927,-835.02,0.00023644,2]
[334966245,1723684238937,-22886.37603296,0.00023646,2]
[334966246,1723684238947,-150.0,0.00023648,2]
[334966247,1723684238957,-151.56,0.00023781,2]
[334966248,1723684238970,-150.0,0.00023781,2]
[334966249,1723684238980,-356.58,0.00023781,2]
[334966250,1723684238989,-159.45,0.00023781,2]
[334966251,1723684239000,-1061.94,0.00023781,2]
[334966252,1723684239010,-300.0,0.00023781,2]
[334966253,1723684239020,-156.08,0.00023781,2]
[334966254,1723684239029,-150.0,0.00023781,2]
[334966255,1723684239040,-150.0,0.00023781,2]
[334966256,1723684239050,-150.0,0.00023781,2]
[334966257,1723684239059,-356.58,0.00023781,2]
[334966258,1723684239068,-356.58,0.00023781,2]
[334966259,1723684239078,-150.0,0.00023781,2]
[334966260,1723684239086,-426.45,0.00023781,2]
[334966261,1723684239096,-150.0,0.00023781,2]
[334966262,1723684239104,-150.0,0.00023781,2]
[334966263,1723684239114,-531.07,0.00023781,2]
[334966264,1723684239123,-150.0,0.00023781,2]
[334966265,1723684239133,-531.07,0.00023781,2]
[334966266,1723684239142,-426.45,0.00023781,2]
[334966267,1723684239151,-356.58,0.00023781,2]
[334966268,1723684239160,-150.0,0.00023781,2]
[334966269,1723684239170,-150.0,0.00023781,2]
[334966270,1723684239179,-150.0,0.00023781,2]
[334966271,1723684239190,-426.45,0.00023781,2]
[334966272,1723684239199,-531.07,0.00023781,2]
[334966273,1723684239208,-150.0,0.00023781,2]
[334966274,1723684239218,-150.0,0.00023781,2]
[334966275,1723684239227,-150.0,0.00023781,2]
[334966276,1723684239236,-356.58,0.00023781,2]
[334966277,1723684239246,-150.0,0.00023781,2]
[334966278,1723684239256,-426.45,0.00023781,2]
[334966279,1723684239265,-150.0,0.00023781,2]
[334966280,1723684239274,-531.07,0.00023781,2]
[334966281,1723684239283,-356.58,0.00023781,2]
[334966282,1723684239293,-257.91,0.00023781,2]
[334966283,1723684239302,-426.45,0.00023781,2]
[334966286,1723684239311,-150.0,0.00023781,2]
[334966288,1723684239320,-252.15,0.00023781,2]
[334966289,1723684239330,-531.07,0.00023781,2]
[334966290,1723684239339,-150.0,0.00023781,2]
[334966291,1723684239349,-426.45,0.00023781,2]
[334966292,1723684239358,-150.0,0.00023781,2]
[334966293,1723684239368,-531.07,0.00023781,2]
[334966294,1723684239377,-426.45,0.00023781,2]
[334966295,1723684239386,-531.07,0.00023781,2]
[334966296,1723684239395,-150.0,0.00023781,2]
[334966297,1723684239405,-388.08345911,0.0002395,2]
[334966298,1723684239414,-1000.0,0.00024,2]
[334966299,1723684239423,-420.3320603,0.00024067,2]
[334966300,1723684239433,-808.12284203,0.00024109,2]
[334966301,1723684239443,-796.47547052,0.00024131,2]
[334966302,1723684239453,-682.5024832,0.00024157,30]
[334966303,1723684239463,-259.31855569,0.00024173,2]
[334966304,1723684239472,-2075.472,0.000242,2]
[334966305,1723684239482,-1000.0,0.000242,2]
[334966306,1723684239491,-4863.2503,0.000242,2]
[334966307,1723684239501,-6223.5338951,0.000242,2]
[334966308,1723684239510,-213.82958139,0.000242,2]
[334966309,1723684239519,-2025.37714953,0.00024201,2]
[334966310,1723684239528,-1932.60611324,0.00024201,2]
[334966311,1723684239538,-303.71508266,0.00024222,2]
[334966312,1723684239548,-150.0,0.00024225,2]
[334966313,1723684239557,-6223.5338951,0.00024233,2]
[334966314,1723684239568,-6223.5338951,0.00024267,2]
[334966315,1723684239578,-303.71508262,0.00024268,2]
[334966316,1723684239587,-500.0,0.00024279,2]
[334966317,1723684239597,-262.5936,0.00024283,2]
[334966318,1723684239607,-33678.2553324,0.0002429,4]
[334966319,1723684239616,-2740.73355,0.0002429,2]
[334966320,1723684239626,-199965.52247608,0.000243,5]
[334966321,1723684239636,-20000.0,0.000243,2]
[334966322,1723684239646,-7698.23841114,0.000243,4]
[334966323,1723684239655,-226.0,0.000243,2]
[334966324,1723684239665,-150.0,0.000243,5]
[334966325,1723684239675,-904.0,0.000243,2]
[334966326,1723684239685,-6223.5338951,0.000243,2]
[334966327,1723684239695,-303.71508262,0.00024315,2]
[334966328,1723684239704,-4670.89,0.00024322,2]
[334966329,1723684239714,-6223.5338951,0.00024333,2]
[334966330,1723684239723,-8419.56383309,0.00024352,4]
[334966331,1723684239732,-152.14,0.00024353,2]
[334966332,1723684239741,-152.38,0.00024361,2]
[334966333,1723684239750,-303.71508262,0.00024361,2]
[334966334,1723684239759,-167.00667528,0.00024362,2]
[334966335,1723684239768,-109454.32983,0.00024363,4]
[334966336,1723684239777,-1031.29518511,0.00024363,4]
[334966337,1723684239786,-6223.5338951,0.00024367,2]
[334966338,1723684239796,-200.0,0.00024373,2]
[334966339,1723684239806,-200.0,0.00024373,2]
[334966340,1723684239815,-151.0,0.00024373,7]
[334966341,1723684239824,-151.0,0.00024373,7]
[334966343,1723684239833,-151.0,0.00024373,7]
[334966345,1723684239842,-240.239554,0.00024373,7]
[334966347,1723684239851,-240.239554,0.00024373,7]
[334966349,1723684239861,-151.0,0.00024373,7]
[334966351,1723684239870,-109454.32983,0.00024373,4]
[334966353,1723684239879,-10312.9518511,0.00024373,4]
[334966355,1723684239888,-152.14,0.00024373,2]
[334966357,1723684239897,-1031.29518511,0.0002438,4]
[334966359,1723684239907,-163.8208128,0.0002438,2]
[334966361,1723684239916,-500.0,0.00024383,7]
[334966363,1723684239926,-500.0,0.00024383,7]
[334966365,1723684239935,-500.0,0.00024383,7]
[334966367,1723684239945,-500.0,0.00024383,7]
[334966369,1723684239955,-500.0,0.00024383,7]
[334966370,1723684239968,-560.85,0.00024383,7]
[334966372,1723684239978,-500.0,0.00024383,7]
[334966374,1723684239988,-500.0,0.00024383,7]
[334966376,1723684239998,-500.0,0.00024383,7]
[334966378,1723684240010,-500.0,0.00024383,7]
[334966380,1723684240020,-314.50316323,0.00024383,7]
[334966382,1723684240029,-500.0,0.00024383,7]
[334966384,1723684240040,-500.0,0.00024383,7]
[334966386,1723684240050,-186.51,0.00024383,7]
[334966388,1723684240060,-500.0,0.00024383,7]
[334966390,1723684240070,-500.0,0.00024383,7]
[334966392,1723684240080,-500.0,0.00024383,7]
[334966394,1723684240090,-500.0,0.00024383,7]
[334966396,1723684240099,-500.0,0.00024383,7]
[334966398,1723684240108,-270.50000001,0.00024383,7]
[334966400,1723684240119,-500.0,0.00024383,7]
[334966402,1723684240128,-500.0,0.00024383,7]
[334966404,1723684240137,-500.0,0.00024383,7]
[334966406,1723684240147,-500.0,0.00024383,7]
[334966408,1723684240157,-500.0,0.00024383,7]
[334966410,1723684240167,-500.0,0.00024383,7]
[334966412,1723684240176,-313.31,0.00024383,7]
[334966414,1723684240186,-510.54,0.00024383,7]
[334966416,1723684240195,-510.65,0.00024383,7]
[334966417,1723684240205,-500.0,0.00024383,7]
[334966418,1723684240215,-513.16,0.00024383,7]
[334966419,1723684240224,-500.0,0.00024383,7]
[334966420,1723684240234,-500.0,0.00024383,7]
[334966421,1723684240244,-151.0,0.00024383,7]
[334966422,1723684240254,-151.0,0.00024383,7]
[334966423,1723684240263,-500.0,0.00024383,7]
[334966424,1723684240273,-500.0,0.00024383,7]
[334966425,1723684240282,-151.0,0.00024383,7]
[334966426,1723684240292,-151.0,0.00024383,7]
[334966427,1723684240301,-500.0,0.00024383,7]
[334966428,1723684240311,-500.0,0.00024383,7]
[334966429,1723684240321,-500.0,0.00024383,7]
[334966430,1723684240330,-150.43,0.00024383,7]
[334966431,1723684240340,-500.0,0.00024383,7]
[334966433,1723684240349,-500.0,0.00024383,7]
[334966435,1723684240358,-500.0,0.00024383,7]
[334966437,1723684240367,-500.0,0.00024383,7]
[334966439,1723684240377,-506.88,0.00024383,7]
[334966441,1723684240386,-500.0,0.00024383,7]
[334966443,1723684240396,-500.0,0.00024383,7]
[334966445,1723684240405,-1071.44,0.00024383,7]
[334966447,1723684240415,-1071.44,0.00024383,7]
[334966449,1723684240424,-1071.44,0.00024383,7]
[334966451,1723684240436,-500.0,0.00024383,7]
[334966452,1723684240446,-511.42,0.00024383,7]
[334966454,1723684240456,-515.68134949,0.00024383,7]
[334966457,1723684240466,-500.0,0.00024383,7]
[334966459,1723684240475,-500.0,0.00024383,7]
[334966461,1723684240484,-505.52793147,0.00024383,7]
[334966463,1723684240494,-500.0,0.00024383,7]
[334966464,1723684240503,-500.0,0.00024383,7]
[334966466,1723684240513,-500.0,0.00024383,7]
[334966468,1723684240523,-500.0,0.00024383,7]
[334966470,1723684240532,-500.0,0.00024383,7]
[334966472,1723684240541,-500.0,0.00024383,7]
[334966474,1723684240550,-500.0,0.00024383,7]
[334966476,1723684240560,-500.0,0.00024383,7]
[334966478,1723684240569,-617.54,0.00024383,7]
[334966480,1723684240580,-500.0,0.00024383,7]
[334966482,1723684240589,-500.0,0.00024383,7]
[334966484,1723684240598,-500.0,0.00024383,7]
[334966486,1723684240608,-500.0,0.00024383,7]
[334966488,1723684240617,-500.0,0.00024383,7]
[334966490,1723684240627,-500.0,0.00024383,7]
[334966492,1723684240637,-500.0,0.00024383,7]
[334966494,1723684240646,-500.0,0.00024383,7]
[334966496,1723684240656,-500.0,0.00024383,7]
[334966498,1723684240666,-451.16,0.00024383,7]
[334966500,1723684240676,-500.0,0.00024383,7]
[334966502,1723684240689,-500.0,0.00024383,7]
[334966504,1723684240699,-500.0,0.00024383,7]
[334966506,1723684240708,-500.0,0.00024383,7]
[334966508,1723684240718,-500.0,0.00024383,7]
[334966510,1723684240728,-151.0,0.00024383,7]
[334966512,1723684240737,-151.0,0.00024383,7]
[334966514,1723684240747,-500.0,0.00024383,7]
[334966516,1723684240756,-644.0507048,0.00024383,7]
[334966518,1723684240765,-500.0,0.00024383,7]
[334966520,1723684240774,-500.0,0.00024383,7]
[334966522,1723684240783,-500.0,0.00024383,7]
[334966523,1723684240793,-500.0,0.00024383,7]
[334966525,1723684240802,-500.0,0.00024383,7]
[334966527,1723684240812,-500.0,0.00024383,7]
[334966529,1723684240821,-500.0,0.00024383,7]
[334966531,1723684240831,-151.0,0.00024383,7]
[334966533,1723684240840,-151.0,0.00024383,7]
[334966535,1723684240849,-500.0,0.00024383,7]
[334966537,1723684240858,-500.0,0.00024383,7]
[334966539,1723684240868,-545.17,0.00024383,7]
[334966541,1723684240878,-500.0,0.00024383,7]
[334966543,1723684240887,-538.44411956,0.00024383,7]
[334966545,1723684240897,-500.0,0.00024383,7]
[334966547,1723684240907,-641.96,0.00024383,7]
[334966549,1723684240916,-151.0,0.00024383,7]
[334966551,1723684240926,-500.0,0.00024383,7]
[334966553,1723684240938,-151.0,0.00024383,7]
[334966555,1723684240947,-500.0,0.00024383,7]
[334966557,1723684240957,-151.0,0.00024383,7]
[334966559,1723684240971,-151.0,0.00024383,7]
[334966561,1723684240981,-500.0,0.00024383,7]
[334966563,1723684240992,-500.0,0.00024383,7]
[334966565,1723684241003,-500.0,0.00024383,7]
[334966567,1723684241012,-500.0,0.00024383,7]
[334966569,1723684241022,-151.0,0.00024383,7]
[334966571,1723684241032,-500.0,0.00024383,7]
[334966573,1723684241042,-500.0,0.00024383,7]
[334966575,1723684241051,-500.0,0.00024383,7]
[334966577,1723684241061,-500.0,0.00024383,7]
[334966579,1723684241070,-500.0,0.00024383,7]
[334966581,1723684241081,-500.0,0.00024383,7]
[334966583,1723684241090,-500.0,0.00024383,7]
[334966585,1723684241099,-500.0,0.00024383,7]
[334966587,1723684241108,-500.0,0.00024383,7]
[334966589,1723684241118,-500.0,0.00024383,7]
[334966591,1723684241127,-500.0,0.00024383,7]
[334966593,1723684241137,-500.0,0.00024383,7]
[334966595,1723684241146,-500.0,0.00024383,7]
[334966596,1723684241155,-500.0,0.00024383,7]
[334966598,1723684241165,-500.0,0.00024383,7]
[334966601,1723684241176,-500.0,0.00024383,7]
[334966602,1723684241189,-368.04,0.00024383,7]
[334966604,1723684241203,-557.73,0.00024383,7]
[334966606,1723684241212,-500.0,0.00024383,7]
[334966608,1723684241222,-500.0,0.00024383,7]
[334966610,1723684241232,-500.0,0.00024383,7]
[334966612,1723684241242,-500.0,0.00024383,7]
[334966614,1723684241251,-500.0,0.00024383,7]
[334966616,1723684241261,-150.0,0.00024383,7]
[334966618,1723684241271,-231.52,0.00024383,7]
[334966620,1723684241281,-151.0,0.00024383,7]
[334966622,1723684241290,-151.0,0.00024383,7]
[334966624,1723684241299,-151.0,0.00024383,7]
[334966626,1723684241309,-500.0,0.00024383,7]
[334966628,1723684241318,-151.0,0.00024383,7]
[334966630,1723684241328,-500.0,0.00024383,7]
[334966632,1723684241337,-500.0,0.00024383,7]
[334966634,1723684241346,-500.0,0.00024383,7]
[334966636,1723684241356,-151.0,0.00024383,7]
[334966638,1723684241365,-500.0,0.00024383,7]
[334966640,1723684241375,-151.0,0.00024383,7]
[334966642,1723684241385,-151.0,0.00024383,7]
[334966644,1723684241394,-151.0,0.00024383,7]
[334966646,1723684241404,-234.77310278,0.00024383,7]
[334966648,1723684241414,-500.0,0.00024383,7]
[334966650,1723684241423,-500.0,0.00024383,7]
[334966652,1723684241434,-500.0,0.00024383,7]
[334966654,1723684241444,-500.0,0.00024383,7]
[334966656,1723684241454,-500.0,0.00024383,7]
[334966658,1723684241463,-500.0,0.00024383,7]
[334966660,1723684241472,-500.0,0.00024383,7]
[334966662,1723684241481,-500.0,0.00024383,7]
[334966664,1723684241491,-540.93,0.00024383,7]
[334966666,1723684241500,-500.0,0.00024383,7]
[334966667,1723684241510,-525.21,0.00024383,7]
[334966669,1723684241520,-500.0,0.00024383,7]
[334966671,1723684241530,-553.5,0.00024383,7]
[334966672,1723684241539,-500.0,0.00024383,7]
[334966674,1723684241549,-500.0,0.00024383,7]
[334966676,1723684241558,-302.41,0.00024383,7]
[334966677,1723684241568,-500.0,0.00024383,7]
[334966679,1723684241577,-500.0,0.00024383,7]
[334966681,1723684241587,-151.0,0.00024383,7]
[334966682,1723684241596,-151.0,0.00024383,7]
[334966684,1723684241606,-500.0,0.00024383,7]
[334966686,1723684241616,-500.0,0.00024383,7]
[334966687,1723684241625,-500.0,0.00024383,7]
[334966689,1723684241635,-500.0,0.00024383,7]
[334966691,1723684241644,-500.0,0.00024383,7]
[334966692,1723684241653,-500.0,0.00024383,7]
[334966694,1723684241662,-500.0,0.00024383,7]
[334966696,1723684241672,-302.23,0.00024383,7]
[334966697,1723684241682,-500.0,0.00024383,7]
[334966699,1723684241702,-500.0,0.00024383,7]
[334966701,1723684241711,-512.5,0.00024383,7]
[334966703,1723684241720,-151.0,0.00024383,7]
[334966704,1723684241729,-500.0,0.00024383,7]
[334966706,1723684241738,-151.0,0.00024383,7]
[334966708,1723684241748,-500.0,0.00024383,7]
[334966710,1723684241757,-500.0,0.00024383,7]
[334966711,1723684241766,-552.06,0.00024383,7]
[334966713,1723684241776,-500.0,0.00024383,7]
[334966715,1723684241785,-500.0,0.00024383,7]
[334966717,1723684241795,-390.99,0.00024383,7]
[334966718,1723684241804,-500.0,0.00024383,7]
[334966720,1723684241813,-500.0,0.00024383,7]
[334966721,1723684241823,-500.0,0.00024383,7]